fUSD/lending_fUSD_20240803
["ID","MTS","AMOUNT","RATE_DAILY","PERIOD"]
[334009056,1722677443513,-500.0,0.00016438,2]
[334009057,1722677443522,-577.89,0.00016438,2]
[334009058,1722677443531,-610.23,0.00016438,2]
[334009059,1722677443541,-951.78,0.00016438,2]
[334009060,1722677443550,-530.43,0.00016438,2]
[334009061,1722677443559,-579.83,0.00016438,2]
[334009062,1722677443569,-500.0,0.00016438,2]
[334009063,1722677443578,-1035.27,0.00016438,2]
[334009064,1722677443587,-500.0,0.00016438,2]
[334009065,1722677443597,-500.0,0.00016438,2]
[334009066,1722677443606,-500.0,0.00016438,2]
[334009067,1722677443615,-1948.6,0.00016438,2]
[334009068,1722677443625,-500.0,0.00016438,2]
[334009069,1722677443634,-616.0,0.00016438,2]
[334009070,1722677443643,-1532.16,0.00016438,2]
[334009071,1722677443654,-1464.33,0.00016438,2]
[334009072,1722677443663,-500.0,0.00016438,2]
[334009073,1722677443673,-500.0,0.00016438,2]
[334009074,1722677443682,-3664.77,0.00016438,2]
[334009075,1722677443691,-500.0,0.00016438,2]
[334009076,1722677443701,-3522.0,0.00016438,2]
[334009077,1722677443710,-500.0,0.00016438,2]
[334009078,1722677443719,-3399.86,0.00016438,2]
[334009079,1722677443728,-500.0,0.00016438,2]
[334009080,1722677443738,-500.0,0.00016438,2]
[334009081,1722677443747,-500.0,0.00016438,2]
[334009082,1722677443756,-241.15,0.00016438,2]
[334009083,1722677443766,-500.0,0.00016438,2]
[334009084,1722677443775,-500.0,0.00016438,2]
[334009085,1722677443784,-505.05095866,0.00016438,2]
[334009086,1722677443794,-7676.34,0.00016438,2]
[334009087,1722677443803,-500.0,0.00016438,2]
[334009088,1722677443812,-737.7,0.00016438,2]
[334009089,1722677443821,-500.0,0.00016438,2]
[334009090,1722677443830,-1978.21,0.00016438,2]
[334009091,1722677443840,-612.04,0.00016438,2]
[334009092,1722677443849,-520.1,0.00016438,2]
[334009093,1722677443859,-1287.96,0.00016438,2]
[334009094,1722677443868,-676.25,0.00016438,2]
[334009095,1722677443877,-2161.17,0.00016438,2]
[334009096,1722677443887,-500.0,0.00016438,2]
[334009097,1722677443896,-891.52,0.00016438,2]
[334009098,1722677443906,-500.0,0.00016438,2]
[334009099,1722677443915,-500.0,0.00016438,2]
[334009100,1722677443924,-1854.37,0.00016438,2]
[334009101,1722677443934,-500.0,0.00016438,2]
[334009102,1722677443943,-2056.44,0.00016438,2]
[334009103,1722677443953,-500.0,0.00016438,2]
[334009104,1722677443962,-500.0,0.00016438,2]
[334009105,1722677443971,-500.0,0.00016438,2]
[334009106,1722677443981,-500.0,0.00016438,2]
[334009107,1722677443990,-994.25,0.00016438,2]
[334009108,1722677443999,-730.96,0.00016438,2]
[334009109,1722677444009,-500.0,0.00016438,2]
[334009110,1722677444022,-500.65815273,0.00016438,2]
[334009111,1722677444031,-196.24228264,0.00016438,2]
[334009112,1722677444069,-303.75771736,0.00016438,2]
[334009113,1722677444078,-195.77734299,0.00016438,2]
[334009114,1722677444089,-500.0,0.00016438,2]
[334009115,1722677444098,-500.0,0.00016438,2]
[334009116,1722677444107,-500.0,0.00016438,2]
[334009117,1722677444116,-500.0,0.00016438,2]
[334009118,1722677444126,-634.89,0.00016438,2]
[334009119,1722677444135,-511.49,0.00016438,2]
[334009120,1722677444144,-1747.59,0.00016438,2]
[334009121,1722677444154,-524.18,0.00016438,2]
[334009122,1722677444163,-500.0,0.00016438,2]
[334009123,1722677444173,-500.0,0.00016438,2]
[334009124,1722677444182,-500.0,0.00016438,2]
[334009125,1722677444192,-1730.55,0.00016438,2]
[334009126,1722677444201,-544.94,0.00016438,2]
[334009127,1722677444210,-2030.05,0.00016438,2]
[334009128,1722677444219,-500.0,0.00016438,2]
[334009129,1722677444229,-867.22,0.00016438,2]
[334009130,1722677444239,-3381.48,0.00016438,2]
[334009131,1722677444248,-500.0,0.00016438,2]
[334009132,1722677444258,-1032.15,0.00016438,2]
[334009133,1722677444267,-618.8,0.00016438,2]
[334009134,1722677444276,-500.0,0.00016438,2]
[334009135,1722677444286,-682.28,0.00016438,2]
[334009136,1722677444296,-500.0,0.00016438,2]
[334009137,1722677444305,-473.95582126,0.00016438,2]
[334009138,1722677444314,-1826.73,0.00016438,2]
[334009139,1722677444323,-686.44,0.00016438,2]
[334009140,1722677444333,-500.0,0.00016438,2]
[334009141,1722677444342,-500.0,0.00016438,2]
[334009142,1722677444352,-500.0,0.00016438,2]
[334009143,1722677444361,-1474.61,0.00016438,2]
[334009144,1722677444371,-1179.6,0.00016438,2]
[334009145,1722677444381,-500.0,0.00016438,2]
[334009146,1722677444391,-1014.35,0.00016438,2]
[334009147,1722677444400,-500.0,0.00016438,2]
[334009148,1722677444418,-500.0,0.00016438,2]
[334009149,1722677444427,-607.86,0.00016438,2]
[334009150,1722677444437,-500.0,0.00016438,2]
[334009151,1722677444447,-500.0,0.00016438,2]
[334009152,1722677444456,-720.96,0.00016438,2]
[334009153,1722677444466,-500.0,0.00016438,2]
[334009154,1722677444475,-1654.87,0.00016438,2]
[334009155,1722677444485,-572.29,0.00016438,2]
[334009156,1722677444495,-500.0,0.00016438,2]
[334009157,1722677444504,-500.0,0.00016438,2]
[334009158,1722677444513,-500.0,0.00016438,2]
[334009159,1722677444523,-500.0,0.00016438,2]
[334009160,1722677444532,-500.0,0.00016438,2]
[334009161,1722677444541,-500.0,0.00016438,2]
[334009162,1722677444551,-629.63,0.00016438,2]
[334009163,1722677444560,-1046.38,0.00016438,2]
[334009164,1722677444570,-609.4,0.00016438,2]
[334009165,1722677444579,-500.0,0.00016438,2]
[334009166,1722677444589,-500.0,0.00016438,2]
[334009167,1722677444598,-732.06,0.00016438,2]
[334009168,1722677444607,-500.0,0.00016438,2]
[334009169,1722677444616,-500.0,0.00016438,2]
[334009170,1722677444625,-607.26,0.00016438,2]
[334009171,1722677444635,-788.95,0.00016438,2]
[334009172,1722677444644,-500.0,0.00016438,2]
[334009173,1722677444653,-500.0,0.00016438,2]
[334009174,1722677444662,-683.28,0.00016438,2]
[334009175,1722677444671,-500.0,0.00016438,2]
[334009176,1722677444680,-500.0,0.00016438,2]
[334009177,1722677444689,-548.26,0.00016438,2]
[334009178,1722677444701,-500.0,0.00016438,2]
[334009179,1722677444722,-2586.04,0.00016438,2]
[334009180,1722677444742,-500.0,0.00016438,2]
[334009181,1722677444765,-621.16,0.00016438,2]
[334009182,1722677444787,-500.0,0.00016438,2]
[334009183,1722677444810,-1203.14,0.00016438,2]
[334009184,1722677444833,-500.0,0.00016438,2]
[334009185,1722677444856,-500.0,0.00016438,2]
[334009186,1722677444876,-1298.89,0.00016438,2]
[334009187,1722677444886,-500.0,0.00016438,2]
[334009188,1722677444895,-1113.1,0.00016438,2]
[334009189,1722677444905,-655.61,0.00016438,2]
[334009190,1722677444914,-840.62,0.00016438,2]
[334009191,1722677444923,-1222.07,0.00016438,2]
[334009192,1722677444932,-1242.01,0.00016438,2]
[334009193,1722677444942,-2650.51,0.00016438,2]
[334009194,1722677444951,-500.0,0.00016438,2]
[334009195,1722677444961,-500.0,0.00016438,2]
[334009196,1722677444970,-568.9,0.00016438,2]
[334009197,1722677444980,-804.45,0.00016438,2]
[334009198,1722677444989,-500.0,0.00016438,2]
[334009199,1722677444999,-500.0,0.00016438,2]
[334009200,1722677445008,-1753.26,0.00016438,2]
[334009201,1722677445021,-1432.67,0.00016438,2]
[334009202,1722677445032,-850.72,0.00016438,2]
[334009203,1722677445044,-500.0,0.00016438,2]
[334009204,1722677445054,-500.0,0.00016438,2]
[334009205,1722677445064,-500.0,0.00016438,2]
[334009206,1722677445073,-543.1,0.00016438,2]
[334009207,1722677445083,-835.45,0.00016438,2]
[334009208,1722677445095,-2047.59,0.00016438,2]
[334009209,1722677445105,-500.0,0.00016438,2]
[334009210,1722677445114,-1295.7,0.00016438,2]
[334009211,1722677445124,-500.0,0.00016438,2]
[334009212,1722677445133,-634.56,0.00016438,2]
[334009213,1722677445142,-2197.52,0.00016438,2]
[334009214,1722677445366,-972.41,0.00016438,2]
[334009215,1722677445376,-500.0,0.00016438,2]
[334009216,1722677445386,-861.49,0.00016438,2]
[334009217,1722677445399,-671.06,0.00016438,2]
[334009218,1722677445410,-1370.43,0.00016438,2]
[334009219,1722677445420,-1918.01,0.00016438,2]
[334009220,1722677445429,-500.0,0.00016438,2]
[334009221,1722677445439,-500.0,0.00016438,2]
[334009222,1722677445449,-500.0,0.00016438,2]
[334009223,1722677445459,-500.0,0.00016438,2]
[334009224,1722677445468,-3577.59,0.00016438,2]
[334009225,1722677445478,-1054.53,0.00016438,2]
[334009226,1722677445488,-500.0,0.00016438,2]
[334009227,1722677445497,-738.29,0.00016438,2]
[334009228,1722677445507,-866.15,0.00016438,2]
[334009229,1722677445517,-1852.68,0.00016438,2]
[334009230,1722677445526,-635.48,0.00016438,2]
[334009231,1722677445536,-500.0,0.00016438,2]
[334009232,1722677445546,-500.0,0.00016438,2]
[334009233,1722677445555,-500.0,0.00016438,2]
[334009234,1722677445565,-1235.02,0.00016438,2]
[334009235,1722677445574,-1175.91,0.00016438,2]
[334009236,1722677445584,-500.0,0.00016438,2]
[334009237,1722677445594,-500.0,0.00016438,2]
[334009238,1722677445604,-500.0,0.00016438,2]
[334009239,1722677445614,-1047.85,0.00016438,2]
[334009240,1722677445624,-500.0,0.00016438,2]
[334009241,1722677445634,-944.76,0.00016438,2]
[334009242,1722677445643,-500.0,0.00016438,2]
[334009243,1722677445654,-500.0,0.00016438,2]
[334009244,1722677445663,-500.0,0.00016438,2]
[334009245,1722677445673,-2055.74,0.00016438,2]
[334009246,1722677445683,-500.0,0.00016438,2]
[334009247,1722677445693,-3858.6,0.00016438,2]
[334009248,1722677445702,-900.37,0.00016438,2]
[334009249,1722677445711,-1313.19,0.00016438,2]
[334009250,1722677445721,-500.0,0.00016438,2]
[334009251,1722677445731,-500.0,0.00016438,2]
[334009252,1722677445740,-500.0,0.00016438,2]
[334009253,1722677445750,-500.0,0.00016438,2]
[334009254,1722677445759,-5955.43,0.00016438,2]
[334009255,1722677445769,-2323.69,0.00016438,2]
[334009256,1722677445780,-681.47,0.00016438,2]
[334009257,1722677445790,-684.82,0.00016438,2]
[334009258,1722677445799,-723.48,0.00016438,2]
[334009259,1722677445809,-500.0,0.00016438,2]
[334009260,1722677445818,-500.0,0.00016438,2]
[334009261,1722677445828,-653.67,0.00016438,2]
[334009262,1722677445837,-500.0,0.00016438,2]
[334009263,1722677445847,-500.0,0.00016438,2]
[334009264,1722677445857,-500.0,0.00016438,2]
[334009265,1722677445867,-500.0,0.00016438,2]
[334009266,1722677445877,-2168.43,0.00016438,2]
[334009267,1722677445886,-846.81,0.00016438,2]
[334009268,1722677445896,-3637.87,0.00016438,2]
[334009269,1722677445905,-1115.63,0.00016438,2]
[334009270,1722677445914,-758.4,0.00016438,2]
[334009271,1722677445924,-990.79,0.00016438,2]
[334009272,1722677445933,-500.0,0.00016438,2]
[334009273,1722677445943,-500.0,0.00016438,2]
[334009274,1722677445952,-3863.97853389,0.00016438,2]
[334009275,1722677445967,-384.3713,0.00016438,2]
[334009276,1722677445995,-325.41737,0.00016438,2]
[334009277,1722677446007,-1477.783724,0.00016438,2]
[334009278,1722677446312,-779.76981013,0.00015058,2]
[334009279,1722677446322,-17226.07907211,0.00016438,2]
[334009280,1722677446331,-500.0,0.00016438,2]
[334009281,1722677446341,-3254.38,0.00016438,2]
[334009282,1722677446351,-1895.43,0.00016438,2]
[334009283,1722677446361,-809.64,0.00016438,2]
[334009284,1722677446370,-2775.41,0.00016438,2]
[334009285,1722677446379,-500.0,0.00016438,2]
[334009286,1722677446389,-2487.82,0.00016438,2]
[334009287,1722677446398,-562.05,0.00016438,2]
[334009288,1722677446408,-2881.17,0.00016438,2]
[334009289,1722677446418,-500.0,0.00016438,2]
[334009290,1722677446427,-500.0,0.00016438,2]
[334009292,1722677446437,-500.0,0.00016438,2]
[334009293,1722677446446,-546.3146021,0.00016441,2]
[334009294,1722677446458,-168.05434707,0.00016709,2]
[334009295,1722677446467,-500.0,0.00016711,2]
[334009296,1722677446477,-500.0,0.00016712,2]
[334009297,1722677446486,-500.0,0.00016712,2]
[334009298,1722677446496,-500.0,0.00016712,2]
[334009299,1722677446505,-500.0,0.00016712,2]
[334009300,1722677446515,-500.0,0.00016712,2]
[334009301,1722677446525,-500.0,0.00016712,2]
[334009302,1722677446535,-392.12,0.00016712,2]
[334009303,1722677446545,-500.0,0.00016712,2]
[334009304,1722677446555,-151.0,0.00016712,2]
[334009305,1722677446564,-500.0,0.00016712,2]
[334009306,1722677446574,-500.0,0.00016712,2]
[334009307,1722677446584,-500.0,0.00016712,2]
[334009308,1722677446594,-500.0,0.00016712,2]
[334009309,1722677446603,-151.251698,0.00016712,2]
[334009310,1722677446613,-151.479141,0.00016712,2]
[334009311,1722677446622,-151.0,0.00016712,2]
[334009312,1722677446632,-500.0,0.00016712,2]
[334009313,1722677446642,-500.0,0.00016712,2]
[334009314,1722677446651,-500.0,0.00016712,2]
[334009315,1722677446663,-500.0,0.00016712,2]
[334009316,1722677446672,-500.0,0.00016712,2]
[334009317,1722677446682,-500.0,0.00016712,2]
[334009318,1722677446691,-500.0,0.00016712,2]
[334009319,1722677446701,-378.64780942,0.00016712,2]
[334009320,1722677446710,-500.0,0.00016712,2]
[334009321,1722677446720,-235.00187047,0.00016712,2]
[334009322,1722677446729,-532.39257261,0.00016712,2]
[334009323,1722677446739,-500.0,0.00016712,2]
[334009324,1722677446748,-500.0,0.00016712,2]
[334009325,1722677446757,-500.0,0.00016712,2]
[334009326,1722677446768,-500.0,0.00016712,2]
[334009327,1722677446777,-500.0,0.00016712,2]
[334009328,1722677446787,-500.0,0.00016712,2]
[334009329,1722677446797,-500.0,0.00016712,2]
[334009330,1722677446806,-433.0070996,0.00016712,2]
[334009331,1722677446816,-500.0,0.00016712,2]
[334009332,1722677446825,-500.0,0.00016712,2]
[334009333,1722677446835,-500.0,0.00016712,2]
[334009334,1722677446844,-500.0,0.00016712,2]
[334009335,1722677446854,-500.0,0.00016712,2]
[334009336,1722677446865,-500.0,0.00016712,2]
[334009337,1722677446875,-500.0,0.00016712,2]
[334009338,1722677446885,-500.0,0.00016712,2]
[334009339,1722677446895,-500.0,0.00016712,2]
[334009340,1722677446905,-500.0,0.00016712,2]
[334009341,1722677446915,-500.0,0.00016712,2]
[334009342,1722677446925,-513.89,0.00016712,2]
[334009343,1722677446935,-500.0,0.00016712,2]
[334009344,1722677446944,-500.0,0.00016712,2]
[334009345,1722677446954,-500.0,0.00016712,2]
[334009346,1722677446964,-500.0,0.00016712,2]
[334009347,1722677446973,-152.72639121,0.00016712,2]
[334009348,1722677446983,-500.0,0.00016712,2]
[334009349,1722677446992,-500.0,0.00016712,2]
[334009350,1722677447002,-500.0,0.00016712,2]
[334009351,1722677447013,-500.0,0.00016712,2]
[334009352,1722677447024,-500.0,0.00016712,2]
[334009353,1722677447034,-500.0,0.00016712,2]
[334009354,1722677447043,-500.0,0.00016712,2]
[334009355,1722677447054,-500.0,0.00016712,2]
[334009356,1722677447063,-500.0,0.00016712,2]
[334009357,1722677447073,-500.0,0.00016712,2]
[334009358,1722677447083,-500.0,0.00016712,2]
[334009359,1722677447094,-500.0,0.00016712,2]
[334009360,1722677447105,-287.76,0.00016712,2]
[334009361,1722677447115,-500.0,0.00016712,2]
[334009362,1722677447124,-500.0,0.00016712,2]
[334009363,1722677447134,-500.0,0.00016712,2]
[334009364,1722677447145,-500.0,0.00016712,2]
[334009365,1722677447156,-595.14,0.00016712,2]
[334009366,1722677447166,-500.0,0.00016712,2]
[334009367,1722677447176,-500.0,0.00016712,2]
[334009368,1722677447186,-500.0,0.00016712,2]
[334009369,1722677447195,-717.66,0.00016712,2]
[334009370,1722677447205,-269.76376203,0.00016712,2]
[334009371,1722677447215,-500.0,0.00016712,2]
[334009372,1722677447225,-500.0,0.00016712,2]
[334009373,1722677447235,-500.0,0.00016712,2]
[334009374,1722677447245,-500.0,0.00016712,2]
[334009375,1722677447255,-500.0,0.00016712,2]
[334009376,1722677447265,-600.29,0.00016712,2]
[334009377,1722677447275,-395.35732121,0.00016712,2]
[334009378,1722677447284,-500.0,0.00016712,2]
[334009379,1722677447294,-500.0,0.00016712,2]
[334009380,1722677447303,-500.0,0.00016712,2]
[334009381,1722677447313,-500.0,0.00016712,2]
[334009382,1722677447322,-500.0,0.00016712,2]
[334009383,1722677447332,-500.0,0.00016712,2]
[334009384,1722677447341,-500.0,0.00016712,2]
[334009385,1722677447351,-500.0,0.00016712,2]
[334009386,1722677447361,-500.0,0.00016712,2]
[334009387,1722677447371,-500.0,0.00016712,2]
[334009388,1722677447381,-500.0,0.00016712,2]
[334009389,1722677447391,-500.0,0.00016712,2]
[334009390,1722677447401,-500.0,0.00016712,2]
[334009391,1722677447413,-1295.28,0.00016712,2]
[334009392,1722677447423,-500.0,0.00016712,2]
[334009393,1722677447433,-500.0,0.00016712,2]
[334009394,1722677447443,-500.0,0.00016712,2]
[334009395,1722677447454,-500.0,0.00016712,2]
[334009396,1722677447464,-972.76,0.00016712,2]
[334009397,1722677447474,-500.0,0.00016712,2]
[334009398,1722677447484,-500.0,0.00016712,2]
[334009399,1722677447494,-508.94,0.00016712,2]
[334009400,1722677447504,-500.0,0.00016712,2]
[334009401,1722677447514,-500.0,0.00016712,2]
[334009402,1722677447524,-500.0,0.00016712,2]
[334009403,1722677447533,-500.0,0.00016712,2]
[334009404,1722677447543,-500.0,0.00016712,2]
[334009405,1722677447552,-500.0,0.00016712,2]
[334009406,1722677447562,-500.0,0.00016712,2]
[334009407,1722677447572,-500.0,0.00016712,2]
[334009408,1722677447582,-500.0,0.00016712,2]
[334009409,1722677447591,-500.0,0.00016712,2]
[334009410,1722677447601,-500.0,0.00016712,2]
[334009411,1722677447612,-500.0,0.00016712,2]
[334009412,1722677447623,-500.0,0.00016712,2]
[334009413,1722677447632,-500.0,0.00016712,2]
[334009414,1722677447642,-500.0,0.00016712,2]
[334009415,1722677447652,-500.0,0.00016712,2]
[334009416,1722677447663,-151.0,0.00016712,2]
[334009417,1722677447673,-500.0,0.00016712,2]
[334009418,1722677447767,-500.0,0.00016712,2]
[334009419,1722677447776,-500.0,0.00016712,2]
[334009420,1722677447787,-694.13,0.00016712,2]
[334009421,1722677447797,-500.0,0.00016712,2]
[334009422,1722677447806,-543.25,0.00016712,2]
[334009423,1722677447816,-500.0,0.00016712,2]
[334009424,1722677447825,-500.0,0.00016712,2]
[334009425,1722677447835,-500.0,0.00016712,2]
[334009426,1722677447844,-500.0,0.00016712,2]
[334009427,1722677447854,-500.0,0.00016712,2]
[334009428,1722677447863,-500.0,0.00016712,2]
[334009429,1722677447872,-500.0,0.00016712,2]
[334009430,1722677447882,-500.0,0.00016712,2]
[334009431,1722677447891,-530.43,0.00016712,2]
[334009432,1722677447901,-1052.9,0.00016712,2]
[334009433,1722677447915,-586.46,0.00016712,2]
[334009434,1722677447924,-500.0,0.00016712,2]
[334009435,1722677447934,-500.0,0.00016712,2]
[334009436,1722677447942,-500.0,0.00016712,2]
[334009437,1722677447952,-500.0,0.00016712,2]
[334009438,1722677447962,-533.12,0.00016712,2]
[334009439,1722677447971,-954.01,0.00016712,2]
[334009440,1722677447981,-500.0,0.00016712,2]
[334009441,1722677447991,-500.0,0.00016712,2]
[334009442,1722677448001,-500.0,0.00016712,2]
[334009443,1722677448012,-500.0,0.00016712,2]
[334009444,1722677448025,-500.0,0.00016712,2]
[334009445,1722677448035,-500.0,0.00016712,2]
[334009446,1722677448046,-500.0,0.00016712,2]
[334009447,1722677448057,-500.0,0.00016712,2]
[334009448,1722677448067,-500.0,0.00016712,2]
[334009449,1722677448078,-500.0,0.00016712,2]
[334009450,1722677448088,-500.0,0.00016712,2]
[334009451,1722677448099,-500.0,0.00016712,2]
[334009452,1722677448110,-531.13219906,0.00016712,2]
[334009453,1722677448120,-500.0,0.00016712,2]
[334009454,1722677448130,-500.0,0.00016712,2]
[334009455,1722677448141,-500.0,0.00016712,2]
[334009456,1722677448150,-500.0,0.00016712,2]
[334009457,1722677448161,-500.0,0.00016712,2]
[334009458,1722677448172,-577.71,0.00016712,2]
[334009459,1722677448182,-287.38910497,0.00016712,2]
[334009460,1722677448194,-500.0,0.00016712,2]
[334009461,1722677448204,-500.0,0.00016712,2]
[334009462,1722677448214,-500.0,0.00016712,2]
[334009463,1722677448224,-500.0,0.00016712,2]
[334009464,1722677448234,-903.47,0.00016712,2]
[334009465,1722677448244,-500.0,0.00016712,2]
[334009466,1722677448253,-500.0,0.00016712,2]
[334009467,1722677448263,-500.0,0.00016712,2]
[334009468,1722677448273,-511.16,0.00016712,2]
[334009469,1722677448282,-500.0,0.00016712,2]
[334009470,1722677448293,-500.0,0.00016712,2]
[334009471,1722677448303,-500.0,0.00016712,2]
[334009472,1722677448313,-500.0,0.00016712,2]
[334009473,1722677448322,-500.0,0.00016712,2]
[334009474,1722677448332,-151.0,0.00016712,2]
[334009475,1722677448341,-151.0,0.00016712,2]
[334009476,1722677448351,-211.48,0.00016712,2]
[334009477,1722677448360,-500.0,0.00016712,2]
[334009478,1722677448369,-500.0,0.00016712,2]
[334009479,1722677448381,-500.0,0.00016712,2]
[334009480,1722677448391,-500.0,0.00016712,2]
[334009481,1722677448400,-500.0,0.00016712,2]
[334009482,1722677448410,-500.0,0.00016712,2]
[334009483,1722677448420,-500.0,0.00016712,2]
[334009484,1722677448430,-500.0,0.00016712,2]
[334009485,1722677448440,-500.0,0.00016712,2]
[334009486,1722677448450,-500.0,0.00016712,2]
[334009487,1722677448459,-500.0,0.00016712,2]
[334009488,1722677448469,-500.0,0.00016712,2]
[334009489,1722677448479,-500.0,0.00016712,2]
[334009490,1722677448488,-500.0,0.00016712,2]
[334009491,1722677448497,-500.0,0.00016712,2]
[334009492,1722677448507,-500.0,0.00016712,2]
[334009493,1722677448516,-500.0,0.00016712,2]
[334009494,1722677448526,-500.0,0.00016712,2]
[334009495,1722677448535,-500.0,0.00016712,2]
[334009496,1722677448544,-500.0,0.00016712,2]
[334009497,1722677448554,-500.0,0.00016712,2]
[334009498,1722677448563,-500.0,0.00016712,2]
[334009499,1722677448573,-500.0,0.00016712,2]
[334009500,1722677448583,-500.0,0.00016712,2]
[334009501,1722677448593,-500.0,0.00016712,2]
[334009502,1722677448603,-500.0,0.00016712,2]
[334009503,1722677448612,-500.0,0.00016712,2]
[334009504,1722677448622,-500.0,0.00016712,2]
[334009505,1722677448631,-500.0,0.00016712,2]
[334009506,1722677448641,-500.0,0.00016712,2]
[334009507,1722677448651,-500.0,0.00016712,2]
[334009508,1722677448662,-500.0,0.00016712,2]
[334009509,1722677448675,-500.0,0.00016712,2]
[334009510,1722677448685,-500.0,0.00016712,2]
[334009511,1722677448694,-500.0,0.00016712,2]
[334009512,1722677448704,-500.0,0.00016712,2]
[334009513,1722677448714,-207.73,0.00016712,2]
[334009514,1722677448723,-500.0,0.00016712,2]
[334009515,1722677448733,-500.0,0.00016712,2]
[334009516,1722677448743,-532.26,0.00016712,2]
[334009517,1722677448753,-500.0,0.00016712,2]
[334009518,1722677448762,-500.0,0.00016712,2]
[334009519,1722677448772,-500.0,0.00016712,2]
[334009520,1722677448781,-150.52172612,0.00016712,2]
[334009521,1722677448791,-500.0,0.00016712,2]
[334009522,1722677448800,-500.0,0.00016712,2]
[334009523,1722677448810,-500.0,0.00016712,2]
[334009524,1722677448819,-534.26282623,0.00016712,2]
[334009525,1722677448829,-629.03,0.00016712,2]
[334009526,1722677448838,-500.0,0.00016712,2]
[334009527,1722677448848,-515.44,0.00016712,2]
[334009528,1722677448858,-500.0,0.00016712,2]
[334009529,1722677448868,-873.16,0.00016712,2]
[334009530,1722677448878,-500.0,0.00016712,2]
[334009531,1722677448887,-500.0,0.00016712,2]
[334009532,1722677448896,-1309.81,0.00016712,2]
[334009533,1722677448906,-986.5,0.00016712,2]
[334009534,1722677448916,-500.0,0.00016712,2]
[334009535,1722677448926,-767.3,0.00016712,2]
[334009536,1722677448936,-500.0,0.00016712,2]
[334009537,1722677448946,-500.0,0.00016712,2]
[334009538,1722677448956,-500.0,0.00016712,2]
[334009539,1722677448965,-500.0,0.00016712,2]
[334009540,1722677448975,-500.0,0.00016712,2]
[334009541,1722677448985,-535.92105894,0.00016712,2]
[334009542,1722677448994,-500.0,0.00016712,2]
[334009543,1722677449004,-500.0,0.00016712,2]
[334009544,1722677449015,-586.39,0.00016712,2]
[334009545,1722677449026,-738.95,0.00016712,2]
[334009546,1722677449035,-500.0,0.00016712,2]
[334009547,1722677449044,-500.0,0.00016712,2]
[334009548,1722677449055,-500.0,0.00016712,2]
[334009549,1722677449064,-3935.01,0.00016712,2]
[334009550,1722677449074,-500.0,0.00016712,2]
[334009551,1722677449083,-500.0,0.00016712,2]
[334009552,1722677449095,-2415.7,0.00016712,2]
[334009553,1722677449105,-500.0,0.00016712,2]
[334009554,1722677449114,-500.0,0.00016712,2]
[334009555,1722677449124,-657.57,0.00016712,2]
[334009556,1722677449133,-151.0,0.00016712,2]